[Event "41st Jacques-Lemans-Open 2022"]
[Site "St. Veit/Glan"]
[Date "2022.07.12"]
[Round "5.18"]
[White "Hinteregger, Arthur"]
[Black "Mitscherling, Andreas"]
[Result "1-0"]
[ECO "C03"]
[WhiteElo "1993"]
[BlackElo "2165"]
[Annotator "ChessBase"]
[PlyCount "117"]
[EventDate "2022.07.09"]
[EventType "swiss"]
[EventCountry "AUT"]
[SourceTitle "playchess.com"]
[Source "ChessBase"]
[SourceQuality "1"]
[TimeControl "40/5400+30:1800+30"]

1. e4 {[%emt 0:00:27]} e6 {[%emt 0:00:20]} 2. d4 {[%emt 0:00:10]} d5 {[%emt 0:00:03]} 3. Nd2 {[%emt 0:00:08]} Be7 {[%emt 0:00:06]} 4. Bd3 {[%emt 0:00:18]} c5 {[%emt 0:00:13]} 5. Ngf3 {[%emt 0:00:55]} Nf6 {[%emt 0:00:10]} 6. exd5 {[%emt 0:00:48]} exd5 {[%emt 0:00:15]} 7. dxc5 {[%emt 0:00:29]} Bxc5 {[%emt 0:00:06]} 8. O-O {[%emt 0:00:43]} O-O {[%emt 0:00:05]} 9. h3 {[%emt 0:00:47]} Nc6 {[%emt 0:02:04]} 10. Nb3 {[%emt 0:00:49]} Bb6 {[%emt 0:00:26]} 11. c3 {[%emt 0:01:11]} h6 {[%emt 0:03:27]} 12. Bf4 {[%emt 0:03:59]} Bc7 {[%emt 0:05:10]} 13. Bxc7 {[%emt 0:01:54]} Qxc7 {[%emt 0:00:02]} 14. Re1 {[%emt 0:03:11]} Bd7 {[%emt 0:04:27]} 15. Nbd4 {[%emt 0:03:42]} Rfe8 {[%emt 0:04:10]} 16. Qc2 {[%emt 0:05:16]} Ne5 {[%emt 0:03:50]} 17. Nxe5 {[%emt 0:01:29]} Rxe5 {[%emt 0:00:05]} 18. Rxe5 {[%emt 0:00:25]} Qxe5 {[%emt 0:00:01]} 19. Nf3 {[%emt 0:00:37]} Qd6 {[%emt 0:03:33]} 20. Re1 {[%emt 0:02:05]} Re8 {[%emt 0:06:52]} 21. Rxe8+ {[%emt 0:00:42]} Bxe8 {[%emt 0:00:01]} 22. Nd4 {[%emt 0:08:30]} Bd7 {[%emt 0:01:25]} 23. Qe2 {[%emt 0:04:30]} Kf8 {[%emt 0:03:27]} 24. a3 {[%emt 0:02:10]} Qf4 {[%emt 0:04:07]} 25. Qe3 {[%emt 0:01:31]} Qxe3 {[%emt 0:00:11]} 26. fxe3 {[%emt 0:00:12]} Ke7 {[%emt 0:00:28]} 27. Kf2 {[%emt 0:01:12]} Kd6 {[%emt 0:00:09]} 28. Kf3 {[%emt 0:02:19]} g6 {[%emt 0:01:24]} 29. b4 {[%emt 0:25:28]} a6 {[%emt 0:07:18]} 30. Nb3 {[%emt 0:01:27]} Bc6 {[%emt 0:01:23]} 31. Nd4 {[%emt 0:00:36]} Ba4 {[%emt 0:01:11]} 32. c4 {[%emt 0:04:01]} dxc4 {[%emt 0:05:09]} 33. Bxc4 {[%emt 0:00:17]} Nd7 {[%emt 0:00:27]} 34. Kf4 {[%emt 0:03:21]} Ne5 {[%emt 0:03:04]} 35. Ba2 {[%emt 0:01:49]} f6 {[%emt 0:05:48]} 36. h4 {[%emt 0:04:11]} Bd1 {[%emt 0:02:45]} 37. e4 {[%emt 0:02:00]} b6 {[%emt 0:13:11]} 38. g3 {[%emt 0:02:55]} Bg4 {[%emt 0:07:12]} 39. Ke3 {[%emt 0:01:08]} Bd7 {[%emt 0:01:10]} 40. Bb3 {[%emt 0:02:54]} Ng4+ {[%emt 0:05:52]} 41. Kd3 {[%emt 0:36:05]} Bb5+ {[%emt 0:34:42]} 42. Nxb5+ {[%emt 0:00:00]} axb5 {[%emt 0:00:00]} 43. a4 {[%emt 0:00:00]} bxa4 {[%emt 0:00:00]} 44. Bxa4 {[%emt 0:00:00]} Ne5+ {[%emt 0:00:00]} 45. Kd4 {[%emt 0:00:00]} g5 {[%emt 0:00:00]} 46. h5 {[%emt 0:00:00]} Nf7 {[%emt 0:00:00]} 47. Kc4 {[%emt 0:00:00]} Nd8 {[%emt 0:00:00]} 48. Kb5 {[%emt 0:00:00]} Nc6 {[%emt 0:00:00]} 49. Kc4 {[%emt 0:00:00]} Na7 {[%emt 0:00:00]} 50. Be8 {[%emt 0:00:00]} Nc8 {[%emt 0:00:00]} 51. Kd4 {[%emt 0:00:00]} Ke6 {[%emt 0:00:00]} 52. Bc6 {[%emt 0:00:00]} Ne7 {[%emt 0:01:12]} 53. Be8 {[%emt 0:01:59]} f5 {[%emt 0:00:36]} 54. e5 {[%emt 0:01:12]} Nd5 {[%emt 0:02:41]} 55. Bf7+ {[%emt 0:01:14]} Kxf7 {[%emt 0:00:05]} 56. Kxd5 {[%emt 0:00:04]} g4 {[%emt 0:03:52]} 57. e6+ {[%emt 0:00:21]} Kf6 {[%emt 0:00:29]} 58. Kd6 {[%emt 0:00:09]} f4 {[%emt 0:00:04]} 59. e7 {[%emt 0:00:07]} 1-0

[Event "41st Jacques-Lemans-Open 2022"]
[Site "St. Veit/Glan"]
[Date "2022.07.12"]
[Round "5.19"]
[White "Higatsberger, Michael"]
[Black "Frank, Emanuel"]
[Result "0-1"]
[ECO "C44"]
[WhiteElo "2021"]
[BlackElo "2160"]
[Annotator "ChessBase"]
[PlyCount "42"]
[EventDate "2022.07.09"]
[EventType "swiss"]
[EventCountry "AUT"]
[SourceTitle "playchess.com"]
[Source "ChessBase"]
[SourceQuality "1"]
[TimeControl "40/5400+30:1800+30"]

1. e4 {[%emt 0:00:03]} e5 {[%emt 0:00:05]} 2. Nf3 {[%emt 0:00:09]} Nc6 {[%emt 0:00:03]} 3. d4 {[%emt 0:00:07]} exd4 {[%emt 0:00:08]} 4. Nxd4 {[%emt 0:00:07]} Nf6 {[%emt 0:00:08]} 5. Nc3 {[%emt 0:00:15]} Bb4 {[%emt 0:00:37]} 6. Nxc6 {[%emt 0:00:13]} bxc6 {[%emt 0:00:07]} 7. Bd3 {[%emt 0:00:08]} O-O {[%emt 0:00:33]} 8. O-O {[%emt 0:00:12]} Re8 {[%emt 0:00:38]} 9. Qf3 {[%emt 0:06:10]} d6 {[%emt 0:14:15]} 10. Bg5 {[%emt 0:04:24]} Rb8 {[%emt 0:04:42]} 11. Na4 {[%emt 0:14:19]} c5 {[%emt 0:15:52]} 12. c3 {[%emt 0:04:19]} Ba5 {[%emt 0:00:41]} 13. Rfd1 {[%emt 0:09:43]} Bd7 {[%emt 0:13:09]} 14. Bc2 {[%emt 0:00:20]} Re5 {[%emt 0:01:57]} 15. Bxf6 {[%emt 0:01:29]} Qxf6 {[%emt 0:00:09]} 16. Qxf6 {[%emt 0:00:09]} gxf6 {[%emt 0:00:02]} 17. f4 {[%emt 0:26:13]} Bxa4 {[%emt 0:04:12]} 18. fxe5 {[%emt 0:00:07]} Bxc2 {[%emt 0:00:04]} 19. Rd2 {[%emt 0:00:05]} Bxe4 {[%emt 0:02:02]} 20. exf6 {[%emt 0:00:38]} d5 {[%emt 0:03:16]} 21. Re1 {[%emt 0:02:42]} c6 {[%emt 0:03:06]} 0-1

[Event "41st Jacques-Lemans-Open 2022"]
[Site "St. Veit/Glan"]
[Date "2022.07.12"]
[Round "5.20"]
[White "Praxmarer, Christian"]
[Black "Schein, Karl-Heinz"]
[Result "1/2-1/2"]
[ECO "A03"]
[WhiteElo "1906"]
[BlackElo "2167"]
[Annotator "ChessBase"]
[PlyCount "40"]
[EventDate "2022.07.09"]
[EventType "swiss"]
[EventCountry "AUT"]
[SourceTitle "playchess.com"]
[Source "ChessBase"]
[SourceQuality "1"]
[TimeControl "40/5400+30:1800+30"]

1. f4 {[%emt 0:00:09]} d5 {[%emt 0:00:57]} 2. Nf3 {[%emt 0:00:15]} Nf6 {[%emt 0:00:23]} 3. g3 {[%emt 0:01:13]} c6 {[%emt 0:00:34]} 4. Bg2 {[%emt 0:00:42]} Qb6 {[%emt 0:00:29]} 5. Nc3 {[%emt 0:03:39]} g6 {[%emt 0:03:30]} 6. d4 {[%emt 0:04:27]} Bf5 {[%emt 0:02:39]} 7. O-O {[%emt 0:00:54]} Bg7 {[%emt 0:00:38]} 8. Nh4 {[%emt 0:15:02]} Nbd7 {[%emt 0:04:46]} 9. Nxf5 {[%emt 0:03:26]} gxf5 {[%emt 0:00:12]} 10. Na4 {[%emt 0:02:50]} Qc7 {[%emt 0:01:33]} 11. Qd3 {[%emt 0:01:47]} e6 {[%emt 0:02:21]} 12. Nc5 {[%emt 0:06:33]} Nxc5 {[%emt 0:01:20]} 13. dxc5 {[%emt 0:00:02]} Ne4 {[%emt 0:00:38]} 14. Bxe4 {[%emt 0:05:49]} dxe4 {[%emt 0:02:24]} 15. Qa3 {[%emt 0:05:27]} O-O {[%emt 0:03:17]} 16. Be3 {[%emt 0:02:32]} Rfd8 {[%emt 0:03:12]} 17. Rad1 {[%emt 0:00:29]} a6 {[%emt 0:01:50]} 18. Qb3 {[%emt 0:12:23]} Rd7 {[%emt 0:01:55]} 19. c3 {[%emt 0:01:25]} Rad8 {[%emt 0:00:47]} 20. Rxd7 {[%emt 0:02:19]} Rxd7 {[%emt 0:03:07]} 1/2-1/2

[Event "41st Jacques-Lemans-Open 2022"]
[Site "St. Veit/Glan"]
[Date "2022.07.13"]
[Round "5.21"]
[White "Bajorski, Marius"]
[Black "Schwab, Lukas"]
[Result "0-1"]
[ECO "C94"]
[WhiteElo "1870"]
[BlackElo "2166"]
[Annotator "ChessBase"]
[PlyCount "202"]
[EventDate "2022.07.09"]
[EventType "swiss"]
[EventCountry "AUT"]
[SourceTitle "playchess.com"]
[Source "ChessBase"]
[SourceQuality "1"]
[TimeControl "40/5400+30:1800+30"]

1. e4 {[%emt 0:00:02]} e5 {[%emt 0:00:07]} 2. Nf3 {[%emt 0:00:05]} Nc6 {[%emt 0:00:05]} 3. Bb5 {[%emt 0:00:04]} a6 {[%emt 0:00:19]} 4. Ba4 {[%emt 0:00:09]} Nf6 {[%emt 0:00:07]} 5. O-O {[%emt 0:00:07]} Be7 {[%emt 0:00:03]} 6. Re1 {[%emt 0:00:27]} b5 {[%emt 0:00:06]} 7. Bb3 {[%emt 0:00:07]} d6 {[%emt 0:00:06]} 8. c3 {[%emt 0:00:08]} O-O {[%emt 0:00:28]} 9. h3 {[%emt 0:00:25]} Nb8 {[%emt 0:02:00]} 10. d3 {[%emt 0:00:22]} Nbd7 {[%emt 0:00:44]} 11. Nbd2 {[%emt 0:00:32]} c5 {[%emt 0:01:24]} 12. Nf1 {[%emt 0:00:58]} Qc7 {[%emt 0:02:09]} 13. Ng3 {[%emt 0:01:37]} Re8 {[%emt 0:00:24]} 14. Qe2 {[%emt 0:06:58]} Nb6 {[%emt 0:08:01]} 15. d4 {[%emt 0:02:51]} c4 {[%emt 0:11:23]} 16. Bc2 {[%emt 0:00:52]} Bf8 {[%emt 0:03:37]} 17. dxe5 {[%emt 0:01:51]} dxe5 {[%emt 0:00:10]} 18. Bg5 {[%emt 0:02:28]} Nfd7 {[%emt 0:04:30]} 19. Red1 {[%emt 0:05:48]} Nc5 {[%emt 0:03:59]} 20. Rd2 {[%emt 0:03:27]} f6 {[%emt 0:10:30]} 21. Be3 {[%emt 0:00:33]} Be6 {[%emt 0:00:07]} 22. Rad1 {[%emt 0:02:57]} Rad8 {[%emt 0:00:56]} 23. Nh4 {[%emt 0:18:51]} Rxd2 {[%emt 0:07:42]} 24. Rxd2 {[%emt 0:05:31]} Rd8 {[%emt 0:02:22]} 25. Nhf5 {[%emt 0:10:46]} Rxd2 {[%emt 0:03:09]} 26. Qxd2 {[%emt 0:02:32]} Qd7 {[%emt 0:01:07]} 27. Kf1 {[%emt 0:10:25]} Qxd2 {[%emt 0:02:45]} 28. Bxd2 {[%emt 0:00:05]} Nba4 {[%emt 0:07:15]} 29. Bc1 {[%emt 0:03:55]} Nd3 {[%emt 0:03:18]} 30. Bxd3 {[%emt 0:00:07]} cxd3 {[%emt 0:00:08]} 31. Ke1 {[%emt 0:03:14]} Bxa2 {[%emt 0:00:55]} 32. Kd2 {[%emt 0:06:31]} Nc5 {[%emt 0:07:54]} 33. b4 {[%emt 0:02:09]} Nb3+ {[%emt 0:00:43]} 34. Kd1 {[%emt 0:00:05]} a5 {[%emt 0:04:47]} 35. bxa5 {[%emt 0:01:19]} Nxa5 {[%emt 0:00:20]} 36. Ne3 {[%emt 0:02:55]} Kf7 {[%emt 0:05:04]} 37. Bb2 {[%emt 0:03:49]} Bc5 {[%emt 0:01:34]} 38. Ngf1 {[%emt 0:01:46]} Ke6 {[%emt 0:05:15]} 39. Kd2 {[%emt 0:00:13]} Nb3+ {[%emt 0:00:45]} 40. Kxd3 {[%emt 0:01:34]} Bb1+ {[%emt 0:00:25]} 41. Ke2 {[%emt 0:12:22]} Bxe4 {[%emt 0:01:03]} 42. f3 {[%emt 0:01:22]} Bc6 {[%emt 0:04:56]} 43. Nd2 {[%emt 0:02:35]} Na5 {[%emt 0:01:17]} 44. Nc2 {[%emt 0:01:43]} Kf5 {[%emt 0:04:50]} 45. Ba3 {[%emt 0:02:37]} Bxa3 {[%emt 0:03:49]} 46. Nxa3 {[%emt 0:00:05]} Nb7 {[%emt 0:01:14]} 47. c4 {[%emt 0:01:25]} bxc4 {[%emt 0:00:40]} 48. Naxc4 {[%emt 0:02:46]} Nc5 {[%emt 0:01:19]} 49. h4 {[%emt 0:03:08]} Kf4 {[%emt 0:01:24]} 50. Nf1 {[%emt 0:00:57]} Bb5 {[%emt 0:01:05]} 51. g3+ {[%emt 0:00:36]} Kf5 {[%emt 0:00:01]} 52. Nfe3+ {[%emt 0:00:42]} Ke6 {[%emt 0:00:07]} 53. Kf2 {[%emt 0:00:52]} Nd3+ {[%emt 0:00:25]} 54. Kg2 {[%emt 0:00:31]} Bc6 {[%emt 0:01:16]} 55. Nd2 {[%emt 0:00:44]} f5 {[%emt 0:01:20]} 56. Kf1 {[%emt 0:02:14]} f4 {[%emt 0:01:48]} 57. gxf4 {[%emt 0:00:16]} Nxf4 {[%emt 0:00:40]} 58. Kf2 {[%emt 0:00:38]} Nd3+ {[%emt 0:01:16]} 59. Kg3 {[%emt 0:00:12]} Nf4 {[%emt 0:00:49]} 60. Ng2 {[%emt 0:02:18]} Ne2+ {[%emt 0:01:24]} 61. Kf2 {[%emt 0:00:19]} Nd4 {[%emt 0:00:11]} 62. Kg3 {[%emt 0:01:02]} Nc2 {[%emt 0:02:10]} 63. Kg4 {[%emt 0:00:22]} Kf6 {[%emt 0:01:14]} 64. Kg3 {[%emt 0:00:30]} Kf5 {[%emt 0:00:23]} 65. Nc4 {[%emt 0:00:25]} Nd4 {[%emt 0:01:27]} 66. Nge3+ {[%emt 0:00:05]} Ke6 {[%emt 0:00:18]} 67. Nd2 {[%emt 0:00:12]} g6 {[%emt 0:02:05]} 68. Kg4 {[%emt 0:00:43]} h6 {[%emt 0:02:00]} 69. Nd1 {[%emt 0:02:54]} h5+ {[%emt 0:03:49]} 70. Kg3 {[%emt 0:00:05]} Nf5+ {[%emt 0:00:13]} 71. Kh3 {[%emt 0:00:04]} Kd5 {[%emt 0:00:30]} 72. Ne4 {[%emt 0:00:51]} Kd4 {[%emt 0:00:18]} 73. Ng5 {[%emt 0:00:09]} Bd7 {[%emt 0:00:39]} 74. Nb2 Ne3+ {[%emt 0:02:41]} 75. Kg3 {[%emt 0:01:37]} Kc3 {[%emt 0:01:06]} 76. Kf2 {[%emt 0:00:39]} Nf5 {[%emt 0:00:06]} 77. Nd1+ {[%emt 0:00:07]} Kd2 {[%emt 0:00:27]} 78. Ne3 {[%emt 0:00:31]} Nxe3 {[%emt 0:00:34]} 79. Ne4+ {[%emt 0:00:04]} Kd3 {[%emt 0:00:11]} 80. Nc5+ {[%emt 0:00:05]} Kd4 {[%emt 0:00:07]} 81. Nxd7 {[%emt 0:01:03]} Nf5 {[%emt 0:00:08]} 82. Nf8 {[%emt 0:00:14]} Nxh4 {[%emt 0:00:15]} 83. Kg3 {[%emt 0:00:17]} Nf5+ {[%emt 0:00:25]} 84. Kf2 {[%emt 0:00:11]} Ne7 {[%emt 0:00:24]} 85. Kg3 {[%emt 0:00:11]} Ke3 {[%emt 0:00:47]} 86. Nd7 {[%emt 0:00:12]} Nf5+ {[%emt 0:00:21]} 87. Kh3 {[%emt 0:01:44]} Kf4 {[%emt 0:00:14]} 88. Nf8 {[%emt 0:00:06]} Ne7 {[%emt 0:00:47]} 89. Kg2 {[%emt 0:00:23]} Kf5 {[%emt 0:00:36]} 90. Kg3 {[%emt 0:00:25]} Nd5 {[%emt 0:00:31]} 91. Nd7 {[%emt 0:00:24]} Nf4 {[%emt 0:00:35]} 92. Nc5 {[%emt 0:00:28]} g5 {[%emt 0:00:37]} 93. Ne4 {[%emt 0:00:21]} h4+ {[%emt 0:00:26]} 94. Kf2 {[%emt 0:00:17]} g4 {[%emt 0:01:01]} 95. Nd6+ {[%emt 0:00:28]} Ke6 {[%emt 0:00:06]} 96. Ne4 {[%emt 0:00:06]} g3+ {[%emt 0:00:21]} 97. Kg1 {[%emt 0:00:03]} Kd5 {[%emt 0:00:25]} 98. Nf6+ {[%emt 0:00:13]} Kd4 {[%emt 0:00:12]} 99. Ng4 {[%emt 0:00:04]} h3 {[%emt 0:00:19]} 100. Kh1 {[%emt 0:00:33]} Ne2 {[%emt 0:00:34]} 101. f4 {[%emt 0:01:16]} g2+ {[%emt 0:00:09]} 0-1

[Event "41st Jacques-Lemans-Open 2022"]
[Site "St. Veit/Glan"]
[Date "2022.07.12"]
[Round "5.22"]
[White "Sucher, Johannes"]
[Black "Kempe, Caius Emilian"]
[Result "0-1"]
[ECO "A45"]
[WhiteElo "2164"]
[BlackElo "1877"]
[Annotator "ChessBase"]
[PlyCount "96"]
[EventDate "2022.07.09"]
[EventType "swiss"]
[EventCountry "AUT"]
[SourceTitle "playchess.com"]
[Source "ChessBase"]
[SourceQuality "1"]
[TimeControl "40/5400+30:1800+30"]

1. d4 {[%emt 0:00:03]} Nf6 {[%emt 0:00:05]} 2. Bg5 {[%emt 0:00:08]} d5 {[%emt 0:00:12]} 3. Nd2 {[%emt 0:00:12]} c5 {[%emt 0:00:07]} 4. e3 {[%emt 0:02:29]} Qb6 {[%emt 0:00:18]} 5. dxc5 {[%emt 0:04:01]} Qxb2 {[%emt 0:01:20]} 6. Ngf3 {[%emt 0:00:38]} Ne4 {[%emt 0:09:16]} 7. Nxe4 {[%emt 0:02:00]} dxe4 {[%emt 0:00:09]} 8. Rb1 {[%emt 0:08:51]} Qc3+ {[%emt 0:02:03]} 9. Nd2 {[%emt 0:03:18]} Nc6 {[%emt 0:03:26]} 10. Bc4 {[%emt 0:13:11]} h6 {[%emt 0:17:54]} 11. Bh4 {[%emt 0:06:48]} g5 {[%emt 0:01:49]} 12. Bg3 {[%emt 0:04:05]} h5 {[%emt 0:08:18]} 13. Rb3 {[%emt 0:03:37]} Qa5 {[%emt 0:01:43]} 14. h3 {[%emt 0:12:21]} a6 {[%emt 0:09:56]} 15. O-O {[%emt 0:05:38]} Qxc5 {[%emt 0:00:33]} 16. Rc3 {[%emt 0:10:49]} Qb4 {[%emt 0:01:50]} 17. Rb3 {[%emt 0:06:24]} Qc5 {[%emt 0:00:26]} 18. Qa1 {[%emt 0:01:11]} Rg8 {[%emt 0:01:10]} 19. Qc3 {[%emt 0:00:19]} Qf5 {[%emt 0:01:08]} 20. Rb6 {[%emt 0:01:47]} Bg7 {[%emt 0:01:25]} 21. Qa3 {[%emt 0:01:04]} h4 {[%emt 0:01:42]} 22. f3 {[%emt 0:01:09]} Qa5 {[%emt 0:03:25]} 23. Qb3 {[%emt 0:00:21]} e6 {[%emt 0:04:17]} 24. Be1 {[%emt 0:04:33]} Bc3 {[%emt 0:05:20]} 25. Rf2 {[%emt 0:00:44]} Bb4 {[%emt 0:02:25]} 26. Rxc6 {[%emt 0:03:17]} bxc6 {[%emt 0:00:01]} 27. fxe4 {[%emt 0:00:15]} Qa3 {[%emt 0:01:44]} 28. c3 {[%emt 0:01:59]} Bc5 {[%emt 0:01:05]} 29. Rf3 {[%emt 0:02:19]} Qxb3 {[%emt 0:11:49]} 30. axb3 {[%emt 0:00:11]} Bd6 {[%emt 0:00:05]} 31. Rf1 {[%emt 0:00:30]} a5 {[%emt 0:04:21]} 32. Bf2 {[%emt 0:01:26]} Bc7 {[%emt 0:02:19]} 33. Ra1 {[%emt 0:00:16]} Ke7 {[%emt 0:00:16]} 34. Nf3 {[%emt 0:00:16]} Ba6 {[%emt 0:00:46]} 35. Bxa6 {[%emt 0:00:42]} Rxa6 {[%emt 0:00:01]} 36. c4 {[%emt 0:00:50]} e5 {[%emt 0:01:05]} 37. Nh2 {[%emt 0:00:38]} Rb8 {[%emt 0:00:15]} 38. Nf3 {[%emt 0:00:13]} f6 {[%emt 0:00:25]} 39. Nd2 {[%emt 0:00:07]} Bd6 {[%emt 0:00:05]} 40. Be1 {[%emt 0:01:16]} Bb4 {[%emt 0:00:33]} 41. Rb1 {[%emt 0:00:17]} Bc3 {[%emt 0:04:40]} 42. Nf3 {[%emt 0:05:10]} Bxe1 {[%emt 0:00:58]} 43. Nxe1 {[%emt 0:00:09]} a4 {[%emt 0:00:09]} 44. b4 {[%emt 0:00:07]} a3 {[%emt 0:00:44]} 45. Nc2 {[%emt 0:00:08]} c5 {[%emt 0:01:17]} 46. b5 {[%emt 0:00:33]} Ra4 {[%emt 0:00:10]} 47. Kf1 {[%emt 0:00:32]} Rxc4 {[%emt 0:01:20]} 48. Nxa3 {[%emt 0:00:10]} Rc3 {[%emt 0:00:04]} 0-1

[Event "41st Jacques-Lemans-Open 2022"]
[Site "St. Veit/Glan"]
[Date "2022.07.13"]
[Round "5.23"]
[White "Gruenwald, Simon"]
[Black "Besner, Bernhard"]
[Result "1/2-1/2"]
[ECO "B01"]
[WhiteElo "1762"]
[BlackElo "2164"]
[Annotator "ChessBase"]
[PlyCount "220"]
[EventDate "2022.07.09"]
[EventType "swiss"]
[EventCountry "AUT"]
[SourceTitle "playchess.com"]
[Source "ChessBase"]
[SourceQuality "1"]
[TimeControl "40/5400+30:1800+30"]

1. e4 {[%emt 0:00:07]} d5 {[%emt 0:00:09]} 2. exd5 {[%emt 0:00:07]} Qxd5 {[%emt 0:00:10]} 3. Nc3 {[%emt 0:00:16]} Qa5 {[%emt 0:00:14]} 4. d4 {[%emt 0:00:28]} Nf6 {[%emt 0:00:08]} 5. Nf3 {[%emt 0:00:41]} Bf5 {[%emt 0:00:17]} 6. Ne5 {[%emt 0:00:44]} c6 {[%emt 0:00:38]} 7. Bc4 {[%emt 0:00:55]} e6 {[%emt 0:00:24]} 8. g4 {[%emt 0:14:13]} Bg6 {[%emt 0:01:28]} 9. f3 {[%emt 0:10:05]} Nbd7 {[%emt 0:01:24]} 10. Nxd7 {[%emt 0:00:51]} Nxd7 {[%emt 0:00:47]} 11. h4 {[%emt 0:01:27]} h5 {[%emt 0:05:56]} 12. Qe2 {[%emt 0:04:34]} O-O-O {[%emt 0:04:14]} 13. Bd2 {[%emt 0:07:00]} Qb6 {[%emt 0:15:30]} 14. O-O-O {[%emt 0:00:44]} Nf6 {[%emt 0:01:54]} 15. g5 {[%emt 0:07:54]} Nd5 {[%emt 0:02:38]} 16. Nxd5 {[%emt 0:01:40]} cxd5 {[%emt 0:03:44]} 17. Bd3 {[%emt 0:04:03]} Bxd3 {[%emt 0:00:46]} 18. Qxd3 {[%emt 0:00:25]} Bd6 {[%emt 0:01:37]} 19. Rde1 {[%emt 0:08:13]} g6 {[%emt 0:00:58]} 20. f4 {[%emt 0:01:28]} Kb8 {[%emt 0:05:05]} 21. Rhf1 {[%emt 0:04:34]} Rc8 {[%emt 0:00:23]} 22. Qb3 {[%emt 0:01:24]} Qxb3 {[%emt 0:11:02]} 23. axb3 {[%emt 0:00:05]} Rc6 {[%emt 0:01:25]} 24. c3 {[%emt 0:02:53]} Rhc8 {[%emt 0:00:19]} 25. Kc2 {[%emt 0:01:34]} b5 {[%emt 0:01:28]} 26. Kd3 {[%emt 0:01:51]} Kb7 {[%emt 0:01:10]} 27. b4 {[%emt 0:01:45]} Ra6 {[%emt 0:01:10]} 28. Ra1 {[%emt 0:00:36]} Rcc6 {[%emt 0:00:39]} 29. Ra5 {[%emt 0:01:38]} Rab6 {[%emt 0:03:54]} 30. Rfa1 {[%emt 0:02:37]} Bb8 {[%emt 0:02:27]} 31. Rf1 {[%emt 0:02:30]} Rc8 {[%emt 0:00:32]} 32. Rf3 {[%emt 0:02:11]} Bc7 {[%emt 0:01:03]} 33. Rf2 {[%emt 0:01:55]} Rc6 {[%emt 0:01:10]} 34. Rxb5+ {[%emt 0:05:22]} Bb6 {[%emt 0:00:29]} 35. Ra5 {[%emt 0:01:22]} Bxa5 {[%emt 0:00:20]} 36. bxa5 {[%emt 0:00:02]} Rf8 {[%emt 0:02:16]} 37. b4 {[%emt 0:03:13]} a6 {[%emt 0:00:22]} 38. Rh2 {[%emt 0:02:02]} Kc7 {[%emt 0:00:25]} 39. Rh1 {[%emt 0:01:22]} Kd7 {[%emt 0:00:19]} 40. Rb1 {[%emt 0:00:41]} Rcc8 {[%emt 0:00:40]} 41. Rc1 {[%emt 0:31:20]} f6 {[%emt 0:31:35]} 42. Rh1 {[%emt 0:02:28]} Rh8 {[%emt 0:08:09]} 43. Rh2 {[%emt 0:00:00]} Rce8 {[%emt 0:00:00]} 44. gxf6 {[%emt 0:00:00]} Rhf8 {[%emt 0:00:00]} 45. Rg2 {[%emt 0:00:00]} Rxf6 {[%emt 0:00:00]} 46. Rg5 {[%emt 0:00:00]} Ke7 {[%emt 0:00:00]} 47. Rg1 {[%emt 0:00:00]} Rg8 {[%emt 0:00:00]} 48. Rg5 {[%emt 0:00:00]} Kf7 {[%emt 0:00:00]} 49. Ke3 {[%emt 0:00:00]} Kg7 {[%emt 0:00:00]} 50. Kf3 {[%emt 0:00:00]} Re8 {[%emt 0:00:00]} 51. Ke3 {[%emt 0:00:00]} Rf7 {[%emt 0:00:00]} 52. Rg1 {[%emt 0:00:00]} Rf5 {[%emt 0:00:00]} 53. Rf1 {[%emt 0:00:00]} e5 {[%emt 0:00:00]} 54. dxe5 {[%emt 0:04:00]} Rexe5+ {[%emt 0:00:00]} 55. Kd4 {[%emt 0:03:20]} Re4+ {[%emt 0:00:00]} 56. Kd3 {[%emt 0:00:44]} Kf7 {[%emt 0:00:00]} 57. Rg1 {[%emt 0:00:39]} Re6 {[%emt 0:00:00]} 58. Be3 {[%emt 0:00:25]} Rc6 {[%emt 0:00:00]} 59. Rf1 {[%emt 0:00:57]} Rcf6 {[%emt 0:00:00]} 60. Rg1 {[%emt 0:00:08]} Re6 {[%emt 0:00:00]} 61. Rg2 {[%emt 0:00:45]} Re8 {[%emt 0:00:00]} 62. Rg1 {[%emt 0:00:26]} Rf6 {[%emt 0:00:00]} 63. Rg3 {[%emt 0:00:42]} Rfe6 {[%emt 0:00:00]} 64. Rf3 {[%emt 0:00:32]} Ke7 {[%emt 0:00:00]} 65. f5 {[%emt 0:00:28]} Rc6 {[%emt 0:03:49]} 66. Bc5+ {[%emt 0:00:30]} Kf7 {[%emt 0:01:16]} 67. fxg6+ {[%emt 0:00:22]} Kxg6 {[%emt 0:00:02]} 68. Kd4 {[%emt 0:00:33]} Rd8 {[%emt 0:03:53]} 69. Rg3+ {[%emt 0:00:24]} Kh6 {[%emt 0:01:02]} 70. Rg5 {[%emt 0:00:15]} Rg6 {[%emt 0:00:14]} 71. Be7 {[%emt 0:00:36]} Rd7 {[%emt 0:00:22]} 72. Bf8+ {[%emt 0:00:38]} Kh7 {[%emt 0:03:07]} 73. Rxh5+ {[%emt 0:00:01]} Kg8 {[%emt 0:00:14]} 74. Bc5 {[%emt 0:00:55]} Rg4+ {[%emt 0:00:14]} 75. Kd3 {[%emt 0:00:09]} Kf7 {[%emt 0:01:03]} 76. Bd4 {[%emt 0:01:04]} Kg6 {[%emt 0:01:10]} 77. Re5 {[%emt 0:00:17]} Rg3+ {[%emt 0:05:08]} 78. Kc2 {[%emt 0:00:21]} Kf7 {[%emt 0:00:22]} 79. Rf5+ {[%emt 0:00:23]} Ke7 {[%emt 0:00:56]} 80. h5 {[%emt 0:00:31]} Rh3 {[%emt 0:00:46]} 81. Rg5 {[%emt 0:00:07]} Ke6 {[%emt 0:05:02]} 82. Rg6+ {[%emt 0:00:21]} Kf5 {[%emt 0:00:01]} 83. Rxa6 {[%emt 0:00:17]} Rxh5 {[%emt 0:00:01]} 84. Rf6+ {[%emt 0:00:54]} Ke4 {[%emt 0:00:03]} 85. a6 {[%emt 0:00:16]} Rh2+ {[%emt 0:01:33]} 86. Kb3 {[%emt 0:00:20]} Rh1 {[%emt 0:01:45]} 87. b5 {[%emt 0:00:42]} Ra1 {[%emt 0:01:44]} 88. Kb4 {[%emt 0:00:52]} Rc7 {[%emt 0:00:26]} 89. Re6+ {[%emt 0:01:06]} Kd3 {[%emt 0:00:01]} 90. Re3+ {[%emt 0:00:20]} Kd2 {[%emt 0:00:02]} 91. Re5 {[%emt 0:00:15]} Rc4+ {[%emt 0:00:44]} 92. Kb3 {[%emt 0:00:20]} Rb1+ {[%emt 0:00:34]} 93. Ka3 {[%emt 0:00:14]} Rxb5 {[%emt 0:00:31]} 94. Rh5 {[%emt 0:01:27]} Kc2 {[%emt 0:02:41]} 95. Rh2+ {[%emt 0:00:13]} Kd3 {[%emt 0:00:08]} 96. Rh3+ {[%emt 0:00:27]} Ke4 {[%emt 0:00:12]} 97. a7 {[%emt 0:00:25]} Ra5+ {[%emt 0:00:15]} 98. Kb2 {[%emt 0:00:30]} Rca4 {[%emt 0:02:44]} 99. Re3+ {[%emt 0:00:06]} Kf4 {[%emt 0:00:13]} 100. Re7 {[%emt 0:00:07]} Ra2+ {[%emt 0:00:43]} 101. Kb3 {[%emt 0:00:11]} R2a3+ {[%emt 0:01:55]} 102. Kc2 {[%emt 0:00:02]} Ra1 {[%emt 0:01:10]} 103. Rf7+ {[%emt 0:02:28]} Ke4 {[%emt 0:02:01]} 104. Re7+ {[%emt 0:00:07]} Kf5 {[%emt 0:02:09]} 105. Rf7+ {[%emt 0:00:38]} Ke6 {[%emt 0:00:16]} 106. Rf6+ {[%emt 0:00:02]} Kd7 {[%emt 0:01:14]} 107. Rf7+ {[%emt 0:00:32]} Kc6 {[%emt 0:00:13]} 108. Rf6+ {[%emt 0:00:19]} Kd7 {[%emt 0:00:27]} 109. Rf7+ {[%emt 0:00:20]} Kc6 {[%emt 0:00:47]} 110. Rf6+ {[%emt 0:00:04]} Kd7 {[%emt 0:00:12]} 1/2-1/2